bitfinex-derivatives/quotes_SOLF0:USTF0_20250904
["timestamp","ask_amount","ask_price","bid_price","bid_amount"]
[1756968606201,7.33,206.65,206.61,0.03178877]
[1756968606997,120.50007614,206.66,206.61,0.03178877]
[1756968607191,7.33,206.65,206.61,0.03178877]
[1756968607590,120.50007614,206.66,206.61,0.03178877]
[1756968607797,7.33,206.65,206.61,0.03178877]
[1756968607998,120.50007614,206.66,206.61,7.96178877]
[1756968608196,7.33,206.65,206.62,7.93]
[1756968608395,7.33,206.65,206.61,0.03178877]
[1756968608595,118.48,206.66,206.61,0.03178877]
[1756968608999,7.33,206.65,206.61,0.03178877]
[1756968609302,118.48,206.66,206.61,0.03178877]
[1756968609496,1.98007614,206.67,206.61,7.96178877]
[1756968609699,7.33,206.67,206.63,1.98007614]
[1756968609906,118.52,206.69,206.63,7.93]
[1756968610399,118.52,206.69,206.62,1.98007614]
[1756968610400,7.33,206.68,206.62,1.98007614]
[1756968610601,7.33,206.68,206.61,0.03178877]
[1756968610797,120.50007614,206.69,206.61,0.03178877]
[1756968610798,1.98007614,206.67,206.61,0.03178877]
[1756968610997,7.33,206.62,206.61,0.03178877]
[1756968611194,7.33,206.66,206.61,0.03178877]
[1756968611396,118.58,206.65,206.61,0.03178877]
[1756968611602,7.33,206.64,206.61,0.03178877]
[1756968611803,118.58,206.65,206.61,0.03178877]
[1756968612005,7.84,206.64,206.61,0.03178877]
[1756968612407,1.98007614,206.68,206.61,0.03178877]
[1756968612408,7.84,206.68,206.62,9.48007614]
[1756968612703,9.82007614,206.68,206.61,0.03178877]
[1756968613405,1.98007614,206.65,206.61,0.03178877]
[1756968614502,7.84,206.64,206.61,0.03178877]
[1756968615404,1.98007614,206.65,206.61,0.03178877]
[1756968615602,7.84,206.64,206.61,0.03178877]
[1756968616014,1.98007614,206.65,206.61,0.03178877]
[1756968616215,7.84,206.64,206.61,0.03178877]
[1756968616813,1.98007614,206.65,206.61,0.03178877]
[1756968617014,7.84,206.64,206.61,0.03178877]
[1756968617314,1.98007614,206.65,206.61,0.03178877]
[1756968617813,7.84,206.64,206.61,0.03178877]
[1756968618109,1.98007614,206.65,206.61,0.03178877]
[1756968618314,7.84,206.64,206.61,0.03178877]
[1756968618515,1.98007614,206.65,206.61,0.03178877]
[1756968618912,7.84,206.64,206.61,0.03178877]
[1756968619117,1.98007614,206.66,206.61,0.03178877]
[1756968619615,5.40773527,206.67,206.61,0.03178877]
[1756968619816,7.84,206.67,206.61,0.03178877]
[1756968620415,7.84,206.67,206.61,7.53178877]
[1756968622116,7.84,206.67,206.61,0.03178877]
[1756968625214,126.36,206.7,206.62,7.5]
[1756968625416,7.84,206.7,206.62,7.5]
[1756968626917,7.84,206.7,206.63,1.8119928]
[1756968627112,7.84,206.7,206.61,7.19720663]
[1756968627113,7.84,206.7,206.64,7.5]
[1756968627516,7.84,206.75,206.64,3.09278543]
[1756968627717,7.84,206.75,206.69,7.5]
[1756968628016,7.84,206.79,206.7,3.09278543]
[1756968628606,7.84,206.79,206.69,7.5]
[1756968631118,7.84,206.79,206.72,0.03114751]
[1756968633222,7.84,206.77,206.72,0.03114751]
[1756968633818,118.64,206.78,206.72,0.03114751]
[1756968634223,7.84,206.77,206.72,0.03114751]
[1756968634424,118.64,206.78,206.72,0.03114751]
[1756968634724,7.84,206.77,206.72,0.03114751]
[1756968635526,118.64,206.78,206.72,0.03114751]
[1756968636224,126.44,206.78,206.72,7.53114751]
[1756968639323,7.84,206.78,206.72,7.53114751]
[1756968640828,3.09278543,206.83,206.72,7.53114751]
[1756968641026,7.84,206.82,206.74,7.5]
[1756968641231,7.84,206.82,206.72,0.03114751]
[1756968641429,7.84,206.82,206.71,10.59278543]
[1756968641630,32.01278543,206.83,206.71,10.59278543]
[1756968641929,7.84,206.82,206.74,0.03181548]
[1756968642335,3.09278543,206.8,206.74,0.03181548]
[1756968642522,7.72,206.79,206.74,0.03181548]
[1756968643324,3.09278543,206.8,206.74,0.03181548]
[1756968643522,7.72,206.79,206.74,0.03181548]
[1756968643732,3.09278543,206.8,206.74,0.03181548]
[1756968644233,7.72,206.79,206.74,0.03181548]
[1756968644630,7.72,206.8,206.74,0.03181548]
[1756968646826,10.81278543,206.8,206.74,0.03181548]
[1756968648130,3.09278543,206.79,206.74,0.03181548]
[1756968648332,7.72,206.78,206.74,0.03181548]
[1756968648833,3.09278543,206.79,206.74,0.03181548]
[1756968649029,7.72,206.78,206.74,0.03181548]
[1756968649240,3.09278543,206.79,206.74,0.03181548]
[1756968650632,7.72,206.78,206.74,0.03181548]
[1756968651130,3.09278543,206.79,206.74,0.03181548]
[1756968652031,7.72,206.78,206.74,0.03181548]
[1756968652334,3.09278543,206.79,206.74,0.03181548]
[1756968652932,7.72,206.78,206.74,0.03181548]
[1756968653325,3.09278543,206.79,206.74,0.03181548]
[1756968653533,7.72,206.78,206.74,0.03181548]
[1756968653938,3.09278543,206.79,206.74,0.03181548]
[1756968654439,7.72,206.78,206.74,0.03181548]
[1756968654640,3.09278543,206.79,206.74,0.03181548]
[1756968654937,7.72,206.78,206.74,0.03181548]
[1756968655640,3.09278543,206.79,206.74,0.03181548]
[1756968656236,7.72,206.78,206.74,0.03181548]
[1756968656635,3.09278543,206.79,206.74,0.03181548]
[1756968657341,7.72,206.77,206.74,0.03181548]
[1756968657538,3.09278543,206.79,206.74,0.03181548]
[1756968657739,7.72,206.8,206.74,0.03181548]
[1756968658336,7.72,206.8,206.75,7.84]
[1756968658540,7.72,206.8,206.74,7.87181548]
[1756968659643,7.72,206.8,206.74,0.03181548]
[1756968661746,3.09278543,206.78,206.74,0.03181548]
[1756968662041,7.72,206.77,206.74,0.03181548]
[1756968662545,3.09278543,206.78,206.74,0.03181548]
[1756968662749,7.72,206.77,206.74,0.03181548]
[1756968662941,3.09278543,206.78,206.74,0.03181548]
[1756968663442,7.72,206.77,206.74,0.03181548]
[1756968663639,10.81278543,206.75,206.74,0.03181548]
[1756968666746,7.72,206.75,206.74,0.03181548]
[1756968668551,10.81278543,206.75,206.74,0.03181548]
[1756968668849,10.81278543,206.75,206.64,7.84]
[1756968668850,74.65278543,206.75,206.64,7.84]
[1756968669050,7.72,206.71,206.64,7.84]
[1756968669848,7.72,206.71,206.6,3.09278543]
[1756968670153,7.72,206.71,206.6,7.84]
[1756968670453,7.72,206.67,206.6,7.84]
[1756968674451,0.03304426,206.68,206.6,7.84]
[1756968675352,0.03304426,206.68,206.63,7.97]
[1756968675754,0.03304426,206.68,206.62,3.09278543]
[1756968676353,0.03304426,206.68,206.63,7.97]
[1756968677159,0.03304426,206.68,206.62,3.09278543]
[1756968677756,0.03304426,206.68,206.63,7.97]
[1756968678158,0.03304426,206.68,206.62,3.09278543]
[1756968678559,0.03304426,206.68,206.63,7.97]
[1756968679558,0.03304426,206.68,206.64,1.97828874]
[1756968679763,0.03304426,206.68,206.65,7.97]
[1756968681054,0.03304426,206.68,206.64,1.97828874]
[1756968681256,0.03304426,206.68,206.65,7.97]
[1756968681456,0.03304426,206.68,206.63,1.97828874]
[1756968682360,0.03304426,206.68,206.64,7.97]
[1756968682560,0.03304426,206.68,206.63,1.97828874]
[1756968682960,0.03304426,206.68,206.64,7.97]
[1756968683552,0.03304426,206.68,206.63,1.97828874]
[1756968683753,0.03304426,206.68,206.64,7.97]
[1756968683953,7.72,206.67,206.64,7.97]
[1756968684658,0.03304426,206.68,206.64,7.97]
[1756968684860,7.72,206.67,206.64,7.97]
[1756968686968,9.731333,206.68,206.61,9.94828874]
[1756968694580,7.72,206.67,206.61,9.94828874]
[1756968696884,9.731333,206.68,206.62,8.00201633]
[1756968697083,7.75304426,206.68,206.62,8.00201633]
[1756968697291,9.731333,206.68,206.62,8.00201633]
[1756968701887,0.03304426,206.68,206.62,8.00201633]
[1756968702084,0.03304426,206.68,206.63,1.97828874]
[1756968702284,0.03304426,206.68,206.64,7.82]
[1756968702486,0.03304426,206.68,206.63,1.97828874]
[1756968702684,0.03304426,206.68,206.64,7.82]
[1756968702890,0.03304426,206.68,206.63,1.97828874]
[1756968703487,0.03304426,206.68,206.64,7.82]
[1756968704582,0.03304426,206.68,206.63,1.97828874]
[1756968704788,0.03304426,206.68,206.64,7.82]
[1756968704990,0.03304426,206.68,206.63,1.97828874]
[1756968705179,7.48,206.67,206.63,9.79828874]
[1756968705384,7.48,206.67,206.64,7.82]
[1756968705579,7.51304426,206.68,206.64,7.82]
[1756968705787,0.03304426,206.68,206.62,0.03201633]
[1756968705989,1.97828874,206.67,206.62,0.03201633]
[1756968706289,0.03304426,206.68,206.62,0.03201633]
[1756968706290,1.97828874,206.65,206.62,0.03201633]
[1756968706686,7.48,206.64,206.62,0.03201633]
[1756968707287,1.97828874,206.65,206.62,0.03201633]
[1756968707488,7.48,206.64,206.62,0.03201633]
[1756968707889,7.48,206.66,206.62,7.85201633]
[1756968708593,1.97828874,206.67,206.62,0.03201633]
[1756968708791,1.97828874,206.67,206.63,7.82]
[1756968709091,9.45828874,206.67,206.63,7.82]
[1756968709296,1.97828874,206.67,206.63,7.82]
[1756968709495,7.48,206.66,206.63,7.82]
[1756968709687,1.97828874,206.65,206.62,0.03201633]
[1756968709885,7.48,206.64,206.62,0.03201633]
[1756968710696,1.97828874,206.65,206.62,0.03201633]
[1756968710898,7.48,206.64,206.62,0.03201633]
[1756968711188,0.03304426,206.68,206.62,0.03201633]
[1756968711389,1.97828874,206.65,206.62,0.03201633]
[1756968711895,7.48,206.64,206.62,0.03201633]
[1756968712194,1.97828874,206.65,206.62,0.03201633]
[1756968712385,7.48,206.64,206.62,0.03201633]
[1756968712589,1.97828874,206.65,206.62,0.03201633]
[1756968713391,7.48,206.64,206.62,0.03201633]
[1756968713593,1.97828874,206.65,206.62,0.03201633]
[1756968713797,7.48,206.64,206.62,0.03201633]
[1756968714294,1.97828874,206.65,206.62,0.03201633]
[1756968714692,7.48,206.64,206.62,0.03201633]
[1756968715591,7.48,206.64,206.62,7.85201633]
[1756968715997,7.48,206.66,206.62,7.85201633]
[1756968718389,1.97828874,206.67,206.62,7.85201633]
[1756968718989,7.48,206.66,206.62,7.85201633]
[1756968719193,1.97828874,206.67,206.62,7.85201633]
[1756968719699,7.48,206.66,206.62,7.85201633]
[1756968719901,1.97828874,206.67,206.62,7.85201633]
[1756968720291,7.48,206.66,206.62,7.85201633]
[1756968720497,1.97828874,206.67,206.62,7.85201633]
[1756968720699,7.48,206.66,206.62,7.85201633]
[1756968720893,1.97828874,206.67,206.62,7.85201633]
[1756968721295,7.48,206.66,206.62,7.85201633]
[1756968721489,0.03304426,206.68,206.62,7.85201633]
[1756968721699,7.48,206.65,206.62,7.85201633]
[1756968726004,1.97828874,206.66,206.62,0.03201633]
[1756968726203,7.48,206.65,206.62,0.03201633]
[1756968727204,1.97828874,206.66,206.62,0.03201633]
[1756968728008,7.48,206.65,206.62,0.03201633]
[1756968728301,1.97828874,206.66,206.62,0.03201633]
[1756968728907,7.48,206.65,206.62,0.03201633]
[1756968729311,1.97828874,206.66,206.62,0.03201633]
[1756968729508,7.48,206.65,206.62,0.03201633]
[1756968730007,7.48,206.64,206.62,0.03201633]
[1756968731010,1.97828874,206.65,206.62,0.03201633]
[1756968731511,7.48,206.64,206.62,0.03201633]
[1756968732408,7.48,206.64,206.62,8.03201633]
[1756968733111,9.62828874,206.65,206.62,8.03201633]
[1756968733311,7.65,206.65,206.62,8.03201633]
[1756968733510,7.65,206.65,206.62,0.03201633]
[1756968733712,7.65,206.65,206.63,8.0]
[1756968734911,9.661333,206.68,206.62,8.03201633]
[1756968735516,7.65,206.65,206.62,8.03201633]
[1756968736014,1.97828874,206.66,206.62,8.03201633]
[1756968736215,7.65,206.65,206.62,8.03201633]
[1756968736609,7.68304426,206.68,206.62,8.03201633]
[1756968736809,9.661333,206.68,206.62,8.03201633]
[1756968737610,7.65,206.65,206.63,8.0]
[1756968738412,1.97828874,206.66,206.62,0.03201633]
[1756968738615,7.65,206.65,206.62,0.03201633]
[1756968738809,1.97828874,206.66,206.62,0.03201633]
[1756968739013,7.65,206.65,206.62,0.03201633]
[1756968739215,1.97828874,206.66,206.62,0.03201633]
[1756968739617,7.65,206.65,206.62,0.03201633]
[1756968740411,1.97828874,206.66,206.62,0.03201633]
[1756968740617,7.65,206.65,206.62,0.03201633]
[1756968741312,7.65,206.63,206.62,0.03201633]
[1756968748021,7.65,206.65,206.62,0.03201633]
[1756968748320,118.4,206.66,206.62,0.03201633]
[1756968749524,7.65,206.65,206.62,0.03201633]
[1756968750024,118.4,206.66,206.62,0.03201633]
[1756968750324,7.65,206.65,206.62,0.03201633]
[1756968750525,118.4,206.66,206.62,0.03201633]
[1756968751122,7.65,206.65,206.62,0.03201633]
[1756968751921,118.4,206.66,206.62,0.03201633]
[1756968752526,7.65,206.65,206.62,0.03201633]
[1756968753026,118.4,206.66,206.62,0.03201633]
[1756968753220,7.65,206.65,206.62,0.03201633]
[1756968753929,118.4,206.66,206.62,0.03201633]
[1756968754326,7.65,206.65,206.62,0.03201633]
[1756968754528,118.4,206.65,206.63,8.0]
[1756968755225,7.65,206.67,206.63,8.0]
[1756968755429,118.43304426,206.68,206.62,0.03201633]
[1756968755628,118.43304426,206.68,206.62,8.03201633]
[1756968756431,7.65,206.67,206.62,0.03201633]
[1756968757029,10.74376667,206.67,206.62,0.03201633]
[1756968758131,16.15150194,206.67,206.62,0.03201633]
[1756968759039,3.09376667,206.64,206.62,0.03201633]
[1756968759341,126.03,206.63,206.62,0.03201633]
[1756968762138,7.65,206.63,206.62,0.03201633]
[1756968762344,126.03,206.63,206.62,0.03201633]
[1756968781352,7.31,206.65,206.62,0.03201633]
[1756968781557,118.36,206.64,206.63,7.68]
[1756968782051,118.36,206.64,206.62,0.03201633]
[1756968782259,125.67,206.64,206.62,0.03201633]
[1756968784557,125.67,206.64,206.62,7.71201633]
[1756968786859,0.03304426,206.68,206.62,0.03201633]
[1756968787159,125.65,206.67,206.62,0.03201633]
[1756968787354,7.31,206.66,206.63,7.68]
[1756968787555,118.34,206.65,206.63,7.68]
[1756968788658,125.65,206.65,206.63,7.68]
[1756968789058,7.31,206.64,206.62,0.03201633]
[1756968789258,118.32,206.63,206.62,0.03201633]
[1756968789764,125.63,206.63,206.62,0.03201633]
[1756968794957,7.31,206.63,206.62,0.03201633]
[1756968795260,125.61,206.63,206.62,0.03201633]
[1756968796966,7.31,206.63,206.62,0.03201633]
[1756968797263,125.61,206.63,206.62,0.03201633]
[1756968808467,127.56973529,206.63,206.62,0.03201633]
[1756968811574,7.31,206.63,206.62,0.03201633]
[1756968811874,125.59,206.63,206.62,0.03201633]
[1756968812269,118.28,206.63,206.62,0.03201633]
[1756968813370,118.28,206.63,206.62,7.95201633]
[1756968813573,126.16,206.63,206.62,0.03201633]
[1756968824781,7.88,206.63,206.62,0.03201633]
[1756968825181,126.12,206.63,206.62,0.03201633]
[1756968831388,128.09973529,206.63,206.62,0.03201633]
[1756968834390,128.07973529,206.63,206.62,0.03201633]
[1756968839189,7.45,206.65,206.62,7.32201633]
[1756968839392,7.45,206.65,206.63,7.29]
[1756968839588,118.22,206.64,206.63,7.29]
[1756968840288,0.03304426,206.68,206.63,7.29]
[1756968840486,118.22,206.67,206.63,7.29]
[1756968840681,118.22,206.66,206.63,7.29]
[1756968840892,118.22,206.65,206.63,7.29]
[1756968841089,118.22,206.64,206.63,7.29]
[1756968843491,7.45,206.63,206.62,0.03201633]
[1756968844187,9.42973529,206.63,206.62,0.03201633]
[1756968844491,7.45,206.63,206.62,0.03201633]
[1756968844690,9.42973529,206.63,206.62,0.03201633]
[1756968847088,9.42973529,206.65,206.62,0.03201633]
[1756968847293,118.2,206.64,206.62,7.32201633]
[1756968847797,125.65,206.64,206.62,7.32201633]
[1756968847990,125.65,206.64,206.62,0.03201633]
[1756968848190,7.45,206.63,206.62,0.03201633]
[1756968850892,9.42973529,206.63,206.62,0.03201633]
[1756968852498,127.60973529,206.63,206.62,0.03201633]
[1756968852703,125.63,206.63,206.62,0.03201633]
[1756968852890,127.60973529,206.63,206.62,0.03201633]
[1756968863407,125.63,206.63,206.62,0.03201633]
[1756968864408,7.45,206.63,206.62,0.03201633]
[1756968864609,125.61,206.63,206.62,0.03201633]
[1756968874717,5.40773527,206.67,206.63,7.79]
[1756968874918,0.03304426,206.68,206.63,7.79]
[1756968875119,0.03304426,206.68,206.64,1.78222307]
[1756968875317,121.72,206.67,206.64,7.79]
[1756968875814,121.76,206.66,206.64,7.79]
[1756968876019,0.03304426,206.68,206.64,3.09408991]
[1756968876316,65.71304426,206.68,206.64,3.09408991]
[1756968876617,65.71304426,206.68,206.65,7.79]
[1756968876811,0.03304426,206.68,206.65,7.79]
[1756968877012,0.03304426,206.68,206.64,7.79]
[1756968877212,0.03304426,206.68,206.64,10.88408991]
[1756968877412,0.03304426,206.68,206.65,7.79]
[1756968877815,0.03304426,206.68,206.64,3.09408991]
[1756968879218,0.03304426,206.68,206.65,7.79]
[1756968880110,0.03304426,206.68,206.65,3.09408991]
[1756968880816,0.03304426,206.68,206.66,7.79]
[1756968881020,0.03304426,206.68,206.65,3.09408991]
[1756968881519,0.03304426,206.68,206.66,7.79]
[1756968881717,0.03304426,206.68,206.65,3.09408991]
[1756968882511,0.03304426,206.68,206.66,7.54]
[1756968883015,0.03304426,206.68,206.65,3.09408991]
[1756968883721,0.03304426,206.68,206.66,7.54]
[1756968883921,0.03304426,206.68,206.65,3.09408991]
[1756968884223,0.03304426,206.68,206.67,7.54]
[1756968888827,0.03304426,206.68,206.67,8.02]
[1756968892323,3.09408991,206.83,206.67,8.02]
[1756968892530,129.12,206.81,206.71,7.54]
[1756968893529,129.12,206.81,206.74,0.03404082]
[1756968893732,129.12,206.81,206.74,7.57404082]
[1756968893733,121.16,206.8,206.74,7.57404082]
[1756968895337,7.94,206.81,206.74,7.57404082]
[1756968895540,128.98,206.81,206.74,7.57404082]
[1756968896036,121.04,206.82,206.74,7.57404082]
[1756968896533,128.98,206.82,206.74,7.57404082]
[1756968896931,7.94,206.82,206.74,7.57404082]
[1756968897931,7.94,206.82,206.76,3.09408991]
[1756968898539,7.94,206.82,206.77,7.54]
[1756968898735,120.96,206.85,206.77,7.54]
[1756968899036,128.9,206.85,206.77,7.54]
[1756968899231,7.94,206.85,206.77,7.54]
[1756968899436,128.9,206.85,206.79,0.03371089]
[1756968899937,7.94,206.85,206.79,0.03371089]
[1756968901132,7.94,206.85,206.79,7.57371089]
[1756968901339,37.24,206.86,206.8,7.54]
[1756968901540,7.94,206.89,206.8,7.54]
[1756968901840,7.94,206.89,206.82,3.09408991]
[1756968902038,7.94,206.89,206.8,7.54]
[1756968902240,7.94,206.89,206.77,7.54]
[1756968902432,7.94,206.89,206.82,0.03225838]
[1756968903942,128.76,206.89,206.82,7.57225838]
[1756968904535,128.76,206.89,206.82,0.03225838]
[1756968904931,131.85408991,206.89,206.82,0.03225838]
[1756968907141,7.94,206.85,206.82,0.03225838]
[1756968907437,7.94,206.83,206.82,0.03225838]
[1756968910644,128.54,206.83,206.82,0.03225838]
[1756968911243,7.94,206.83,206.82,0.03225838]
[1756968914044,7.94,206.83,206.82,0.03225838]
[1756968918549,124.78,206.83,206.82,0.03225838]
[1756968918844,7.9,206.89,206.82,0.03225838]
[1756968919047,120.32,206.88,206.82,0.03225838]
[1756968919345,7.9,206.89,206.82,0.03225838]
[1756968919346,7.9,206.86,206.82,7.52225838]
[1756968919545,7.9,206.86,206.82,0.03225838]
[1756968920447,120.32,206.87,206.82,0.03225838]
[1756968920644,7.9,206.86,206.82,0.03225838]
[1756968921252,120.32,206.87,206.82,0.03225838]
[1756968921447,10.99408991,206.86,206.82,0.03225838]
[1756968921644,7.9,206.82,206.71,7.49]
[1756968921842,7.9,206.8,206.72,3.81477835]
[1756968922045,7.9,206.8,206.73,3.81477835]
[1756968922247,7.9,206.8,206.71,7.49]
[1756968922543,7.9,206.8,206.72,3.81541142]
[1756968922742,0.03066826,206.78,206.73,3.81541142]
[1756968922950,7.9,206.77,206.71,7.49]
[1756968923250,0.03066826,206.78,206.72,3.81541183]
[1756968923251,7.93066826,206.78,206.72,3.81541183]
[1756968923452,0.03066826,206.78,206.73,3.81541183]
[1756968923651,7.93066826,206.78,206.72,1.97690273]
[1756968923850,7.9,206.77,206.73,11.30608192]
[1756968924042,7.9,206.77,206.73,7.49]
[1756968924244,0.03066826,206.78,206.73,7.49]
[1756968924450,0.03066826,206.78,206.74,5.77538305]
[1756968924746,0.03066826,206.78,206.75,7.49]
[1756968926548,0.03066826,206.78,206.74,1.97690273]
[1756968926943,0.03066826,206.78,206.75,7.49]
[1756968927150,0.03066826,206.78,206.74,1.97690273]
[1756968927343,0.03066826,206.78,206.75,7.49]
[1756968927549,0.03066826,206.78,206.74,1.97690273]
[1756968928053,0.03066826,206.78,206.75,3.80019267]
[1756968928254,0.03066826,206.78,206.77,7.49]
[1756968929454,0.03066826,206.78,206.77,9.46690273]
[1756968929649,0.03066826,206.78,206.77,13.26845048]
[1756968929853,0.03066826,206.78,206.77,13.74845048]
[1756968934354,7.9,206.86,206.77,6.25845048]
[1756968934554,7.9,206.86,206.82,9.46690273]
[1756968934856,7.9,206.88,206.82,9.46690273]
[1756968935458,7.9,206.88,206.82,7.49]
[1756968935655,39.01690273,206.89,206.83,0.03635577]
[1756968935961,7.9,206.88,206.83,0.03635577]
[1756968936157,39.01690273,206.89,206.83,0.03635577]
[1756968936455,39.01690273,206.89,206.83,2.0132585]
[1756968936655,7.9,206.89,206.83,2.0132585]
[1756968937256,7.9,206.89,206.86,7.49]
[1756968937461,1.97690273,206.88,206.83,0.03635577]
[1756968937658,7.9,206.87,206.83,0.03635577]
[1756968937850,1.97690273,206.88,206.83,0.03635577]
[1756968938253,7.9,206.87,206.83,0.03635577]
[1756968938455,9.87690273,206.87,206.83,0.03635577]
[1756968938663,1.97690273,206.87,206.83,0.03635577]
[1756968940061,7.9,206.86,206.83,0.03635577]
[1756968940257,1.97690273,206.87,206.83,0.03635577]
[1756968940463,7.9,206.86,206.83,0.03635577]
[1756968940763,7.9,206.87,206.83,9.5032585]
[1756968943463,7.9,206.87,206.84,11.45949796]
[1756968943669,7.45,206.89,206.85,3.80949796]
[1756968943965,127.51,206.9,206.84,7.65]
[1756968945069,127.51,206.9,206.83,2.0132585]
[1756968945369,1.97690273,206.89,206.84,3.81015365]
[1756968945579,1.97690273,206.89,206.83,0.03635577]
[1756968945862,7.45,206.88,206.83,0.03635577]
[1756968946573,1.97690273,206.89,206.83,0.03635577]
[1756968946768,1.97690273,206.87,206.83,0.03635577]
[1756968947066,7.45,206.89,206.83,0.03635577]
[1756968947269,9.42690273,206.89,206.83,0.03635577]
[1756968947969,120.06,206.88,206.83,0.03635577]
[1756968948565,7.45,206.87,206.83,0.03635577]
[1756968948768,120.06,206.88,206.83,0.03635577]
[1756968948964,7.45,206.87,206.83,0.03635577]
[1756968949173,120.06,206.88,206.83,0.03635577]
[1756968949668,7.45,206.87,206.83,9.6632585]
[1756968949869,120.04,206.88,206.83,9.6632585]
[1756968950071,7.45,206.87,206.83,9.6632585]
[1756968950268,120.04,206.88,206.83,9.6632585]
[1756968950471,7.45,206.87,206.83,9.6632585]
[1756968950674,7.45,206.87,206.84,11.45968296]
[1756968950869,7.45,206.87,206.84,7.65]
[1756968951171,1.97690273,206.86,206.85,3.80953839]
[1756968951373,7.45,206.87,206.83,0.03635577]
[1756968951574,1.97690273,206.87,206.83,0.03635577]
[1756968951766,1.97690273,206.88,206.83,0.03635577]
[1756968952175,7.45,206.87,206.83,0.03635577]
[1756968952468,7.45,206.88,206.83,0.03635577]
[1756968952776,1.97690273,206.88,206.83,0.03635577]
[1756968953171,7.45,206.87,206.83,0.03635577]
[1756968953374,1.97690273,206.88,206.83,0.03635577]
[1756968953871,120.0,206.89,206.83,0.03635577]
[1756968954068,7.45,206.87,206.83,0.03635577]
[1756968954268,7.45,206.87,206.83,7.68635577]
[1756968954466,7.45,206.87,206.84,3.81168614]
[1756968954669,7.45,206.88,206.85,3.81168614]
[1756968954872,7.45,206.88,206.84,9.62690273]
[1756968955068,7.45,206.88,206.85,11.46154231]
[1756968955275,7.45,206.88,206.85,7.65]
[1756968956873,110.81617854,206.91,206.87,7.65]
[1756968957174,7.45,206.92,206.88,9.62690273]
[1756968957876,7.45,206.9,206.88,0.03063988]
[1756968958976,129.20690273,206.89,206.8,1.97690273]
[1756968959174,7.45,206.86,206.81,3.80940135]
[1756968959374,1.97690273,206.87,206.82,3.80940135]
[1756968959575,7.45,206.86,206.79,9.62690273]
[1756968959768,7.45,206.86,206.8,3.80940938]
[1756968959969,7.45,206.86,206.81,3.80940938]
[1756968960167,0.03192943,206.85,206.79,7.65]
[1756968960374,0.03192943,206.85,206.8,3.80960166]
[1756968960574,0.03192943,206.85,206.81,3.80960166]
[1756968960771,0.03192943,206.85,206.79,1.97690273]
[1756968960977,7.45,206.84,206.8,3.80951434]
[1756968961167,0.03192943,206.85,206.81,3.80951434]
[1756968961367,9.42690273,206.84,206.77,1.97690273]
[1756968961675,9.42690273,206.84,206.78,3.80937576]
[1756968961870,1.97690273,206.84,206.79,3.80937576]
[1756968962071,1.97690273,206.84,206.77,1.97690273]
[1756968962072,1.97690273,206.84,206.8,3.80937576]
[1756968962276,7.45,206.83,206.77,1.97690273]
[1756968962477,1.97690273,206.84,206.78,3.8096561]
[1756968962677,1.97690273,206.84,206.79,3.8096561]
[1756968962874,1.97690273,206.84,206.76,9.62690273]
[1756968963079,7.45,206.83,206.77,3.80984894]
[1756968963387,7.45,206.84,206.78,3.80984894]
[1756968963685,9.42690273,206.82,206.76,9.62690273]
[1756968963882,7.45,206.81,206.77,3.80996094]
[1756968964083,1.97690273,206.82,206.78,3.80996094]
[1756968964282,7.45,206.81,206.76,9.62690273]
[1756968964482,1.97690273,206.82,206.77,3.80989311]
[1756968964676,7.45,206.81,206.78,3.80989311]
[1756968964879,7.45,206.81,206.76,9.62690273]
[1756968964880,9.45959798,206.82,206.76,9.62690273]
[1756968965076,7.45,206.81,206.77,3.80984489]
[1756968965383,2.00959798,206.82,206.78,3.80984489]
[1756968965591,9.45959798,206.82,206.76,9.62690273]
[1756968965883,7.45,206.81,206.77,3.80970081]
[1756968966086,7.45,206.81,206.78,3.80970081]
[1756968966388,9.45959798,206.82,206.76,9.62690273]